Cogmind - Beta 15 @@@ ROGUE MODE // 2025.06.24 @ 13:42:55 Player: dorusv Result: Destroyed by HW-BMG(j) with Overtuned Pulse Rifle Performance ------------- Evolutions (0) 0 Regions Visited (3) 600 Robots Destroyed (4) 20 Value Destroyed (94) 94 Prototype IDs (17) 340 Alien Tech Used (0) 0 Bonus (759) 759 TOTAL SCORE: 1813 Bonus ------- Registered with UFD 300 Met Optimus in HQ 500 Friendly Fire -41 Cogmind --------- Core Integrity 0/250 Matter 290/300 Energy 100/100 System Corruption 0% Temperature Warm (158) Movement Core (150) Ox2 Location -9/Scraptown Parts ------- > --- POWER (1) -------- (None) > --- PROPULSION (2) --- (None) > --- UTILITY (2) ------ Makeshift Microdissipator Network Small Storage Unit > --- WEAPON (2) ------- Medium Laser > --- INVENTORY (8) ---- Light Treads Light Treads Power Bank Medium Laser Peak State ------------ > --- POWER ------------ Light Deuterium Engine > --- PROPULSION ------- Improved Hover Unit Improved Hover Unit > --- UTILITY ---------- Makeshift Microdissipator Network Small Storage Unit > --- WEAPON ----------- Medium Laser Overtuned Pulse Rifle > --- INVENTORY -------- Light Treads Light Treads Power Bank Medium Laser [Rating: 17] Favorites ----------- Power Light Ion Engine Engine Light Ion Engine Propulsion Wheel Wheel Wheel Hover Unit Improved Hover Unit Utility Small Storage Unit Device Seismic Detector Storage Small Storage Unit Weapon Light Assault Rifle Energy Gun Medium Laser Ballistic Gun Light Assault Rifle Launcher Grenade Launcher Build | -11 -10 -10 -9 ------- Run | Yrd Mat Sub Scr Slots Evolved . | . . . . Power . | . . . . Propulsion . | . . . . Utility . | . . . . Weapon . | . . . . Parts Attached 15 | 7 1 . 7 Power 3 | 1 . . 2 Engine 3 | 1 . . 2 Core . | . . . . Reactor . | . . . . Propulsion 4 | 2 . . 2 Treads . | . . . . Leg . | . . . . Wheel 2 | 2 . . . Hover 2 | . . . 2 Flight . | . . . . Utility 3 | 2 . . 1 Device 2 | 1 . . 1 Storage 1 | 1 . . . Processor . | . . . . Hackware . | . . . . Protection . | . . . . Artifact . | . . . . Weapon 5 | 2 1 . 2 Energy Gun 2 | 1 . . 1 Energy Cannon . | . . . . Ballistic Gun 2 | 1 . . 1 Ballistic Cannon . | . . . . Launcher 1 | . 1 . . Special Weapon . | . . . . Impact Weapon . | . . . . Slashing Weapon . | . . . . Piercing Weapon . | . . . . Special Melee Weapon . | . . . . Unidentified Prototypes . | . . . . Parts Lost 12 | . . 1 11 Power 3 | . . . 3 Propulsion 4 | . . . 4 Utility 1 | . . . 1 Weapon 4 | . . 1 3 Highest Loss Streak 7 | . . 1 7 To Critical Strikes . | . . . . Average Backups 6 | 2 4 6 6 Power . | . 1 1 . Propulsion 1 | . 2 2 2 Utility . | . . . 1 Weapon 2 | . 1 2 2 Tool/Special . | . . . . Unused Backups 4 | . . . 4 Power . | . . . . Propulsion 2 | . . . 2 Utility 1 | . . . 1 Weapon 1 | . . . 1 Tool/Special . | . . . . Average Slot Usage (%) 87 | . 100 95 84 Engine 13 | . 14 14 13 Wheel 27 | . 28 28 26 Device 13 | . 14 14 13 Storage 14 | . 14 14 14 Energy Gun 1 | . 14 . . Ballistic Gun 14 | . 14 14 14 Launcher 1 | . . 9 . Peak Build Rating 17 | 7 7 8 17 Average Rating 6 | 3 6 7 7 On Entrance 5 | . 7 7 7 Naked Turns . | . . . . Heaviest Build 14 | 12 13 13 14 Greatest Support 26 | 26 26 26 26 Greatest Overweight (x) 3 | 2 . . 3 Average Overweight (x) . | . . . . Largest Inventory Capacity 8 | 8 8 8 8 Average Capacity 7 | 6 8 8 8 Most Carried 7 | 4 6 7 7 Average Carried 6 | 2 4 6 6 Final Capacity 8 | 8 8 8 8 Final Carried 7 | 4 5 7 4 Class Distribution -------------------- 100% | Mutant Dominant Class ---------------- Mutant | -10/Materials Mutant | -10/Subcaves Mutant | -9/Scraptown Resources | -11 -10 -10 -9 ----------- Run | Yrd Mat Sub Scr Matter Collected 395 | 280 . 41 74 Remotely . | . . . . Salvage Created 181 | 83 . . 98 Parts 15 | 6 . . 9 Haulers Intercepted . | . . . . Recyclers Shooed . | . . . . Parts Field Recycled . | . . . . Retrieved Matter . | . . . . Parts Self-Destructed 8 | . . 8 . Prevented . | . . . . Kills | -11 -10 -10 -9 ------- Run | Yrd Mat Sub Scr Combat Hostiles Destroyed 2 | . . . 2 Guns 2 | . . . 2 Classes Destroyed 4 | 2 . . 2 Tunneler 1 | 1 . . . Recycler 1 | 1 . . . Federalist 1 | . . . 1 Scrapper 1 | . . . 1 Best Kill Streak 2 | 2 . . 2 Combat Bots Only 2 | . . . 2 Max Kills in Single Turn 1 | 1 . . 1 Gunslinging . | . . . . Exploded . | . . . . Melee . | . . . . Uniques/NPCs Destroyed . | . . . . Combat | -11 -10 -10 -9 -------- Run | Yrd Mat Sub Scr Hostile Shots Fired 61 | . 2 . 59 Missed 12 | . 1 . 11 Hits 49 | . 1 . 48 Projectile 49 | . 1 . 48 Critical Strikes 1 | . . . 1 Damage Taken 1001 | . 40 64 897 Core 264 | . 10 5 249 Absorbed by Shields . | . . . . Regen/Repaired (Parts) 31 | . . . 31 Core Remaining (%) 100 | 100 . . . Volleys Fired 51 | 10 10 3 28 Largest 2 | 2 2 2 2 Hottest 80 | 70 70 50 80 Shots Fired 83 | 20 20 5 38 Gun 80 | 20 19 3 38 Cannon . | . . . . Launcher 3 | . 1 2 . Special . | . . . . Kinetic 53 | 10 10 3 30 Thermal 27 | 10 9 . 8 Explosive 3 | . 1 2 . Electromagnetic . | . . . . Robot Hit Streak 12 | 3 . . 12 Robot Miss Streak 3 | 3 . . 1 Penetration Max . | . . . . Secondary Targets . | . . . . Shots Hit Robots 43 | 12 . . 31 Core Hits 12 | 4 . . 8 Critical Kills 1 | . . . 1 Critical Parts Destroyed . | . . . . Critical Strikes 1 | . . . 1 Destroy 1 | . . . 1 Melee Attacks . | . . . . Impact . | . . . . Slashing . | . . . . Piercing . | . . . . Sneak Attacks . | . . . . Combat Hostiles . | . . . . Follow-up Attacks . | . . . . Damage Inflicted 563 | 114 20 21 408 Guns 522 | 114 . . 408 Cannons . | . . . . Explosions 41 | . 20 21 . Melee . | . . . . Ramming . | . . . . Kinetic 399 | 77 . . 322 Thermal 123 | 37 . . 86 Explosive 41 | . 20 21 . Electromagnetic . | . . . . Impact . | . . . . Slashing . | . . . . Piercing . | . . . . Highest Corruption . | . . . . Average Corruption . | . . . . Corruption Purged . | . . . . Corruption Blocked . | . . . . Overload Shots . | . . . . Overflow Damage 5 | . . 5 . Projectiles . | . . . . Explosions 5 | . . 5 . Melee . | . . . . Knockbacks . | . . . . Impact . | . . . . Kinetic . | . . . . Secondary . | . . . . Self-Inflicted Damage 95 | . 30 65 . Shots 3 | . 1 2 . Rammed . | . . . . Targets Rammed . | . . . . Kicked . | . . . . Crushed . | . . . . Highest Temperature 200 | 50 110 . 200 Average Temperature 63 | 25 55 . 86 Received Heat Transfer 496 | . 6 . 490 Siege Activations . | . . . . Martial Activations . | . . . . Shielding Activations . | . . . . Robots Disrupted . | . . . . Combat Hostiles . | . . . . Robots Corrupted . | . . . . Combat Hostiles . | . . . . Parts Fried . | . . . . Impact Corruptions . | . . . . Robots Melted . | . . . . Combat Hostiles . | . . . . Parts Melted . | . . . . Heat Transferred 273 | 111 . . 162 Parts Sabotaged . | . . . . Parts Stolen . | . . . . Parts Stripped . | . . . . Power Chain Reactions . | . . . . Alert | -11 -10 -10 -9 ------- Run | Yrd Mat Sub Scr Maximum Alert Level . | . . . . Low Security (%) 100 | 100 100 . . Level 1 . | . . . . Level 2 . | . . . . Level 3 . | . . . . Level 4 . | . . . . Level 5 . | . . . . High Security . | . . . . Max Security . | . . . . Peak Influence 5 | 5 . . . Initial . | . . . . Average . | . . . . Influence Increases 10 | 10 . . . Destroy 0b10 Robot/NC 10 | 10 . . . Influence Decreases 10 | 10 . . . Time Decay 10 | 10 . . . Squads Dispatched . | . . . . Investigation . | . . . . Extermination . | . . . . Reinforcement . | . . . . Assault . | . . . . Garrison . | . . . . Intercept . | . . . . Searches Triggered . | . . . . Construction Impeded . | . . . . Haulers Reinforced . | . . . . Active Scanning Responses . | . . . . Cargo Convoy Interrupts . | . . . . Stealth | -11 -10 -10 -9 --------- Run | Yrd Mat Sub Scr Distress Signals . | . . . . Communications Jammed . | . . . . Distress Signals . | . . . . Times Spotted 16 | . 4 . 12 Peak Tracking Total 5 | . 2 . 5 Tactical Retreats . | . . . . Traps | -11 -10 -10 -9 ------- Run | Yrd Mat Sub Scr Traps Triggered . | . . . . Indirectly . | . . . . Trap Hack Attempts . | . . . . Triggered . | . . . . Disarmed . | . . . . Reprogrammed . | . . . . Reused . | . . . . Traps Extracted . | . . . . Installed . | . . . . Triggered . | . . . . Machines | -11 -10 -10 -9 ---------- Run | Yrd Mat Sub Scr Machines Disabled 2 | . . 2 . Max in Single Turn 2 | . . 2 . Machines Repaired . | . . . . Machines Dismantled . | . . . . Machines Sabotaged . | . . . . Overloaded Fab Kills . | . . . . Hacking | -11 -10 -10 -9 --------- Run | Yrd Mat Sub Scr Machines Accessed 5 | . 1 1 3 Terminals 1 | . 1 . . Fabricators . | . . . . Repair Stations . | . . . . Recycling Units . | . . . . Scanalyzers . | . . . . Garrison Access . | . . . . Total Hacks 20 | . 3 1 16 Successful 17 | . . 1 16 Failed 3 | . 3 . . Catastrophic . | . . . . Database Lockouts . | . . . . Manual 3 | . 3 . . Terminals 3 | . 3 . . Fabricators . | . . . . Repair Stations . | . . . . Recycling Units . | . . . . Scanalyzers . | . . . . Garrison Access . | . . . . Terminal Hacks 17 | . . 1 16 Record 16 | . . . 16 Proto ID Catalog 1 | . . 1 . Fabricator Hacks . | . . . . Repair Station Hacks . | . . . . Recycling Unit Hacks . | . . . . Scanalyzer . | . . . . Garrison Access Hacks . | . . . . Unauthorized Hacks . | . . . . Terminals . | . . . . Fabricators . | . . . . Repair Stations . | . . . . Recycling Units . | . . . . Scanalyzers . | . . . . Garrison Access . | . . . . Data Cores Recovered 1 | . 1 . . Used . | . . . . Hacking Detections 1 | . 1 . . Full Trace Events 1 | . 1 . . Feedback Events . | . . . . Feedback Blocked . | . . . . Robot Schematics Acquired . | . . . . Robots Built . | . . . . Authchips . | . . . . Time . | . . . . Total Robot Build Rating . | . . . . Part Schematics Acquired . | . . . . Parts Built . | . . . . Authchips . | . . . . Time . | . . . . Total Part Build Rating . | . . . . Parts Repaired . | . . . . Time . | . . . . Parts Recycled . | . . . . Recycled Matter . | . . . . Retrieved Matter . | . . . . Retrieved Components . | . . . . Parts Scanalyzed . | . . . . Part Schematics Acquired . | . . . . Parts Damaged . | . . . . Bothacking | -11 -10 -10 -9 ------------ Run | Yrd Mat Sub Scr Used RIF Installer . | . . . . Robots Hacked . | . . . . Non-combat . | . . . . Combat . | . . . . Robot Hacks Applied . | . . . . Relay Couplers Released . | . . . . Fabnet Peak Effective % . | . . . . Robots Rewired . | . . . . Allies Hacked . | . . . . Hacks Repelled . | . . . . Allies | -11 -10 -10 -9 -------- Run | Yrd Mat Sub Scr Total Allies . | . . . . Largest Group . | . . . . Highest-Rated Group . | . . . . Highest-Rated Ally . | . . . . Total Orders . | . . . . Ally Attacks . | . . . . Total Damage . | . . . . Kills . | . . . . Allies Corrupted . | . . . . Allies Melted 3 | . . . 3 Intel | -11 -10 -10 -9 ------- Run | Yrd Mat Sub Scr Active Infowar (turns) 2158 | 39 237 221 1661 Seismic 2158 | 39 237 221 1661 Robot Analysis Total . | . . . . Derelict Logs Recovered . | . . . . Drone Launches . | . . . . Drone Recoveries . | . . . . Exploration | -11 -10 -10 -9 ------------- Run | Yrd Mat Sub Scr Turns Passed 2454 | 269 237 221 1727 Spaces Moved 2477 | 179 230 235 1833 Core 60 | 47 . . 13 Treads . | . . . . Legs . | . . . . Wheels 2397 | 132 230 235 1800 Hover 20 | . . . 20 Flight . | . . . . Fastest Speed 50 | 50 90 90 56 Average Speed 89 | 81 90 90 90 Slowest Speed 200 | 150 90 90 200 Overloaded Moves . | . . . . Propulsion Burnouts . | . . . . Robots Hopped . | . . . . Potential Cave-ins . | . . . . Cave-ins Triggered . | . . . . Exploration Rate (%) 37 | 7 46 15 82 Regions Visited 3 Branch Regions 2 Pre-discovered Areas . | . . . . Known Exits Taken . | . . . . Unknown Exits Taken 3 | 1 1 1 . Scrap Searched 3 | . . 1 2 Spaces Dug . | . . . . Terrain Destroyed 11 | . 5 6 . Melee . | . . . . Projectile . | . . . . AOE 11 | . 5 6 . Terrain Rammed . | . . . . Walls Destroyed . | . . . . Machines Disabled . | . . . . Actions | -11 -10 -10 -9 --------- Run | Yrd Mat Sub Scr Total 2632 | 280 242 239 1871 Wait 83 | 81 . . 2 Move 2474 | 178 229 234 1833 Hop . | . . . . Pick Up 7 | 4 1 2 . Fast Attach 12 | 7 . . 5 Attach 4 | . 1 . 3 Detach 1 | . 1 . . Swap . | . . . . Drop . | . . . . Fire 51 | 10 10 3 28 Melee . | . . . . Ram . | . . . . Kick . | . . . . Crush . | . . . . Escape Stasis . | . . . . Rewire . | . . . . Trap . | . . . . Miscellaneous . | . . . . Route ------- -11/Scrapyard -10/Materials (discovered 3 exits: [*Mat] / [*Min] / *Sub) -10/Subcaves -9/Scraptown (discovered 2 exits: *Fac x2) History --------- Turn | Location | Event 100 | -11/Scrapyard | Discovered new exit (range 14) 270 | -11/Scrapyard | Entered Materials 271 | -10/Materials | Met a group of wandering Federalists 309 | -10/Materials | Build established: Mutant 346 | -10/Materials | Discovered new exit (range 13) 435 | -10/Materials | Discovered new exit (range 15) 457 | -10/Materials | Discovered new exit (range 5) 507 | -10/Materials | Entered Subcaves 507 | -10/Subcaves | Accompanied by 2 allies 508 | -10/Subcaves | Continued accompanying wandering Federalists (6) 508 | -10/Subcaves | Approached by a straggling Scientist 559 | -10/Subcaves | Visited 4L-MR0's lab 572 | -10/Subcaves | Found Power Bank 720 | -10/Subcaves | Wandering Federalist uncovered a shortcut to Scraptown 728 | -10/Subcaves | Entered Scraptown 1062 | -9/Scraptown | Discovered new exit (range 5) 1185 | -9/Scraptown | Visited Shadow of the Wyrm 1233 | -9/Scraptown | Visited Bundlers 1290 | -9/Scraptown | Visited Spacefarers 1354 | -9/Scraptown | Visited Assassins FH 1404 | -9/Scraptown | Visited UFD Registry 1424 | -9/Scraptown | Visited SPCMW 1473 | -9/Scraptown | Visited IN-MT5's Study 1808 | -9/Scraptown | Visited CR-KLE's Repair Center 1818 | -9/Scraptown | CR-KLE repaired 3 parts 1980 | -9/Scraptown | Registered with UFD as "Bulletsplitter" 2007 | -9/Scraptown | Visited Science Testing Area 2027 | -9/Scraptown | Visited LU-1G1's Boring Crew 2097 | -9/Scraptown | Visited Junk Cannon Lab 2141 | -9/Scraptown | Visited Junk Repository 2183 | -9/Scraptown | Met Optimus 2183 | -9/Scraptown | Accepted into 0bPrime 2246 | -9/Scraptown | Visited Infowarlord's Domain 2268 | -9/Scraptown | Visited Observation Area 2279 | -9/Scraptown | Civil war broke out across Scraptown 2327 | -9/Scraptown | Lost 3 allies 2353 | -9/Scraptown | Identified exit to Factory 2389 | -9/Scraptown | Core integrity fell below 50% 2397 | -9/Scraptown | Core integrity fell below 20% 2429 | -9/Scraptown | Lost 7 parts (2p2n1u2w) 2455 | -9/Scraptown | Destroyed by HW-BMG(j) with Overtuned Pulse Rifle Last Messages --------------- 02398_ Lgt. Assault Rifle destroyed. 02398_ DP-KLG(j) destroyed. 02404_ Acquired Lgt. Deuterium Engine. 02405_ Acquired 47 matter. 02409_ Acquired Mak. Microdissipator Network. 02411_ Acquired 10 matter. 02419_ Acquired Imp. Hover Unit. 02420_ Acquired 10 matter. 02424_ Acquired Imp. Hover Unit. 02426_ Acquired Ovr. Pulse Rifle. 02430_ Machine disabled. 02431_ HW-BMG(j) switches sides: "Sorry, the bolts are shinier on the other side!" 02433_ Machine disabled. 02434_ HW-BMG(j) heat damages Mak. Salvage Targeting Computer. 02435_ Ovr. Pulse Rifle suddenly begins malfunctioning. 02446_ HW-BMG(j) heat short circuits Ovr. Titanium Leg. 02447_ HW-BMG(j) heat spikes uncontrollably. 02449_ Lgt. Deuterium Engine destroyed. 02450_ Ovr. Pulse Rifle destroyed. 02453_ Imp. Hover Unit destroyed. Map ----- +----------------------------------------------------+ | ?????????????????????????????????????????????????? | | ?????????????????????????????????????????????????? | | ?????????????????????????###?????????????????????? | | ????????????????????????? ?????????????????????? | | ????????????????????????? ?????????????????????? | | ?????????????????????# ?? $ ?????????????????????? | | ?????????????????????# ?? ?????????????????????? | | ?????????????????????# ? ?????????????????????? | | ?????????????????????# ? ?????????????????????? | | ???????????????#?????# ?# #?????????????????????? | | ?????????????###*##### ## ##########?###????????? | | ????????????? [=%[ E=" "## """"??"""#???????? | | ???????????? !!=! ! [="## ??? "#???????? | | ???????????? ! !%[ =% ## "????" "#???????? | | ??????????? ! *%=!!## "????" "#???????? | | ??????????? [[*=[=!![ ## "????" "#???????? | | ??????? =% !%=%!=*= "????" "#???????? | | """"????????????"""!!=!*[!%"## """""" "#???????? | | """"????????????"""""" ! !="## " "#???????? | | ## ######????????##"" = ## """"""""""#???????? | | ##????????#"" !%[ ##############???????? | | X"#???????##"" *! "#????????????????????? | | "" "" ##????##?#; !"#????????????????????? | | " "" X"#????# ##; [="###########??????????? | | " ########[[[= !%"## !!!!! #??????????? | | "" j !%!%= @*= #??????????? | | "" j !%!! "## #??????????? | | " ######;;;[!= ## #??????????? | | " "" ""#??# #;# "## !!!!! #??????????? | | "" "" ##??###?###"" "###########??????????? | | X"#????????#"" "#????????????????????? | | ##????????#"" #????????????????????? | | ## ################"" "########?????????????? | | """""""""""""""""""""" ;# ]=!#?????????????? | | """"" """""""""""""""" =]#?????????????? | | ## ####?????????????? | | ## !#?????????????? | | %! "## |]#?????????????? | | !! j ## =#?????????????? | | =% %!! # ####?????????????? | | "" """%""""""""""" """"" %! ## !#?????????????? | | ######=########### ######=* ## #?????????????? | | ## ## # ########?????????????? | | ## # # ## # ! #????????????????????? | | ## # # ## #=%[#????????????????????? | | ## # # ###"###"| """#!* #????????????????????? | | ## ####### #?????#" "# #????????????????????? | | ## #?????#" ""# #????????????????????? | | ## # """ # #?????#" ""# ????????????????????? | | ## # "#" # #?????#" ""# ????????????????????? | +----------------------------------------------------+ Best States ------------- Heat Dissipation 25 Energy Generation 14 Energy Capacity 140 Matter Stores 300 Matter Capacity 300 Sight Range 16 Terrain Scan Density 10 Evasion (%) 53 Item Schematics ----------------- None Robot Schematics ------------------ None Fabricated ------------ Nothing Repaired ---------- Nothing Alien Tech Used ----------------- None Achievements -------------- None Challenges ------------ None Game ------ Seed GuidedLayeredLaser Manual? 0 Play Time 00:33:22 Cumulative 16.0 hours Start 2025.06.23 @ 20:04:18 End 2025.06.24 @ 13:42:55 Sessions 8 Manual Loads 0 Difficulty Rogue Special Mode None Game No. 52 Rogue 49 Adventurer 3 Explorer 0 Win Type - Total 0 Types 0/0/0/0/0/0/0/0/0/0 Lore% 15 Gallery% 21 Achievement% 20 Wizard Run 0 Options --------- Layout 0 ASCII 0 Keyboard 1 Movement Arrows Keybinds 0 Fullscreen 2 Font 24/Smallcaps Map View 90x50 Zoom Use 0% Tactical HUD 1 Map Filters NONE Filters NONE Steam 1 RUN: 4795388e-3f3b-4546-aa7d-e1c2943d2c2e